fUSD/lending_fUSD_20240508
["ID","MTS","AMOUNT","RATE_DAILY","PERIOD"]
[326670205,1715211077989,-642.22,0.00028493,5]
[326670206,1715211077999,-564.31,0.00028493,5]
[326670207,1715211078009,-500.0,0.00028493,5]
[326670208,1715211078019,-500.0,0.00028493,5]
[326670209,1715211078028,-150.0,0.00028493,5]
[326670210,1715211078038,-500.0,0.00028493,5]
[326670211,1715211078048,-525.85,0.00028493,5]
[326670212,1715211078058,-583.26,0.00028493,5]
[326670213,1715211078067,-1058.32,0.00028493,5]
[326670214,1715211078081,-500.0,0.00028493,5]
[326670215,1715211078091,-531.20770038,0.00028493,5]
[326670216,1715211078100,-500.0,0.00028493,5]
[326670217,1715211078110,-500.0,0.00028493,5]
[326670218,1715211078121,-500.0,0.00028493,5]
[326670219,1715211078132,-500.0,0.00028493,5]
[326670220,1715211078141,-562.29,0.00028493,5]
[326670221,1715211078152,-500.0,0.00028493,5]
[326670222,1715211078162,-500.0,0.00028493,5]
[326670223,1715211078172,-500.0,0.00028493,5]
[326670224,1715211078181,-500.0,0.00028493,5]
[326670225,1715211078191,-513.55,0.00028493,5]
[326670226,1715211078201,-500.0,0.00028493,5]
[326670227,1715211078214,-500.0,0.00028493,5]
[326670228,1715211078224,-500.0,0.00028493,5]
[326670229,1715211078235,-630.38,0.00028493,5]
[326670230,1715211078245,-500.0,0.00028493,5]
[326670231,1715211078255,-500.0,0.00028493,5]
[326670232,1715211078265,-537.67,0.00028493,5]
[326670233,1715211078275,-950.58,0.00028493,5]
[326670234,1715211078286,-500.0,0.00028493,5]
[326670235,1715211078296,-500.0,0.00028493,5]
[326670236,1715211078305,-500.0,0.00028493,5]
[326670237,1715211078315,-500.0,0.00028493,5]
[326670238,1715211078325,-677.43,0.00028493,5]
[326670239,1715211078335,-947.25,0.00028493,5]
[326670240,1715211078345,-291.87,0.00028493,5]
[326670241,1715211078355,-713.48,0.00028493,5]
[326670242,1715211078365,-500.0,0.00028493,5]
[326670243,1715211078375,-500.0,0.00028493,5]
[326670244,1715211078385,-500.0,0.00028493,5]
[326670245,1715211078394,-500.0,0.00028493,5]
[326670246,1715211078405,-150.27,0.00028493,5]
[326670247,1715211078415,-500.0,0.00028493,5]
[326670248,1715211078425,-1739.82,0.00028493,5]
[326670249,1715211078434,-500.0,0.00028493,5]
[326670250,1715211078444,-500.0,0.00028493,5]
[326670251,1715211078454,-2303.36,0.00028493,5]
[326670252,1715211078463,-1361.94,0.00028493,5]
[326670253,1715211078473,-500.0,0.00028493,5]
[326670254,1715211078482,-500.0,0.00028493,5]
[326670255,1715211078492,-500.0,0.00028493,5]
[326670256,1715211078502,-720.9,0.00028493,5]
[326670257,1715211078512,-606.42,0.00028493,5]
[326670258,1715211078522,-500.0,0.00028493,5]
[326670259,1715211078534,-500.0,0.00028493,5]
[326670260,1715211078543,-676.05,0.00028493,5]
[326670261,1715211078553,-500.0,0.00028493,5]
[326670262,1715211078562,-1265.5,0.00028493,5]
[326670263,1715211078572,-15344.84,0.00028493,5]
[326670264,1715211078582,-500.0,0.00028493,5]
[326670265,1715211078592,-973.48,0.00028493,5]
[326670266,1715211078601,-500.0,0.00028493,5]
[326670267,1715211078611,-500.0,0.00028493,5]
[326670268,1715211078620,-717.57,0.00028493,5]
[326670269,1715211078629,-500.0,0.00028493,5]
[326670270,1715211078638,-2891.19,0.00028493,5]
[326670271,1715211078647,-625.25,0.00028493,5]
[326670272,1715211078658,-1612.72,0.00028493,5]
[326670273,1715211078667,-315.91,0.00028493,5]
[326670274,1715211078677,-1861.79,0.00028493,5]
[326670275,1715211078686,-616.25,0.00028493,5]
[326670276,1715211078695,-553.47,0.00028493,5]
[326670277,1715211078705,-500.0,0.00028493,5]
[326670278,1715211078714,-500.0,0.00028493,5]
[326670279,1715211078724,-500.0,0.00028493,5]
[326670280,1715211078733,-500.0,0.00028493,5]
[326670281,1715211078743,-7574.71,0.00028493,5]
[326670282,1715211078752,-516.16,0.00028493,5]
[326670283,1715211078761,-177.38,0.00028493,5]
[326670284,1715211078771,-556.61,0.00028493,5]
[326670285,1715211078780,-1640.26,0.00028493,5]
[326670286,1715211078789,-500.0,0.00028493,5]
[326670287,1715211078799,-605.56,0.00028493,5]
[326670288,1715211078808,-500.0,0.00028493,5]
[326670289,1715211078818,-500.0,0.00028493,5]
[326670290,1715211078827,-500.0,0.00028493,5]
[326670291,1715211078837,-548.72,0.00028493,5]
[326670292,1715211078846,-536.46,0.00028493,5]
[326670293,1715211078855,-500.0,0.00028493,5]
[326670294,1715211078865,-500.0,0.00028493,5]
[326670295,1715211078874,-1384.0,0.00028493,5]
[326670296,1715211078883,-681.86,0.00028493,5]
[326670297,1715211078892,-500.0,0.00028493,5]
[326670298,1715211078901,-521.82,0.00028493,5]
[326670299,1715211078913,-500.0,0.00028493,5]
[326670300,1715211078922,-1064.68,0.00028493,5]
[326670301,1715211078931,-809.02,0.00028493,5]
[326670302,1715211078941,-500.0,0.00028493,5]
[326670303,1715211078950,-547.79,0.00028493,5]
[326670304,1715211078959,-196.29,0.00028493,5]
[326670305,1715211079112,-414.92,0.00028493,5]
[326670306,1715211079123,-500.0,0.00028493,5]
[326670307,1715211079132,-637.32,0.00028493,5]
[326670308,1715211079142,-500.0,0.00028493,5]
[326670309,1715211079152,-500.0,0.00028493,5]
[326670310,1715211079163,-500.0,0.00028493,5]
[326670311,1715211079173,-2762.28,0.00028493,5]
[326670312,1715211079183,-1230.97,0.00028493,5]
[326670313,1715211079192,-207.29,0.00028493,5]
[326670314,1715211079201,-422.76,0.00028493,5]
[326670315,1715211079211,-500.0,0.00028493,5]
[326670316,1715211079220,-559.48,0.00028493,5]
[326670317,1715211079229,-417.23,0.00028493,5]
[326670318,1715211079238,-500.0,0.00028493,5]
[326670319,1715211079247,-500.0,0.00028493,5]
[326670320,1715211079257,-500.0,0.00028493,5]
[326670321,1715211079266,-1888.29,0.00028493,5]
[326670322,1715211079275,-500.0,0.00028493,5]
[326670323,1715211079287,-500.0,0.00028493,5]
[326670324,1715211079297,-500.0,0.00028493,5]
[326670325,1715211079306,-500.0,0.00028493,5]
[326670326,1715211079316,-500.0,0.00028493,5]
[326670327,1715211079325,-500.0,0.00028493,5]
[326670328,1715211079335,-500.0,0.00028493,5]
[326670329,1715211079345,-500.0,0.00028493,5]
[326670330,1715211079355,-500.0,0.00028493,5]
[326670331,1715211079365,-500.0,0.00028493,5]
[326670332,1715211079375,-927.93,0.00028493,5]
[326670333,1715211079385,-500.0,0.00028493,5]
[326670334,1715211079394,-2147.38,0.00028493,5]
[326670335,1715211079404,-500.0,0.00028493,5]
[326670336,1715211079413,-500.0,0.00028493,5]
[326670337,1715211079422,-4355.07,0.00028493,5]
[326670338,1715211079432,-500.0,0.00028493,5]
[326670339,1715211079441,-719.21,0.00028493,5]
[326670340,1715211079450,-500.0,0.00028493,5]
[326670341,1715211079460,-500.0,0.00028493,5]
[326670342,1715211079470,-5640.89,0.00028493,5]
[326670343,1715211079479,-500.0,0.00028493,5]
[326670344,1715211079490,-220.68,0.00028493,5]
[326670345,1715211079500,-603.52,0.00028493,5]
[326670346,1715211079511,-453.11,0.00028493,5]
[326670347,1715211079522,-500.0,0.00028493,2]
[326670348,1715211079532,-552.72,0.00028493,5]
[326670349,1715211079542,-500.0,0.00028493,5]
[326670350,1715211079553,-1938.92,0.00028493,5]
[326670351,1715211079563,-729.49,0.00028493,5]
[326670352,1715211079573,-625.3,0.00028493,5]
[326670353,1715211079584,-2468.99,0.00028493,5]
[326670354,1715211079594,-659.92,0.00028493,5]
[326670355,1715211079604,-500.0,0.00028493,5]
[326670356,1715211079613,-1216.95,0.00028493,5]
[326670357,1715211079623,-500.0,0.00028493,5]
[326670358,1715211079633,-500.0,0.00028493,5]
[326670359,1715211079643,-500.0,0.00028493,5]
[326670360,1715211079652,-500.0,0.00028493,5]
[326670361,1715211079662,-701.13,0.00028493,5]
[326670362,1715211079671,-500.0,0.00028493,5]
[326670363,1715211079682,-500.0,0.00028493,5]
[326670364,1715211079693,-500.0,0.00028493,5]
[326670365,1715211079703,-585.68,0.00028493,5]
[326670366,1715211079713,-500.0,0.00028493,2]
[326670367,1715211079722,-1972.8,0.00028493,5]
[326670368,1715211079731,-202.32,0.00028493,5]
[326670369,1715211079741,-2652.59,0.00028493,5]
[326670370,1715211079750,-774.16,0.00028493,5]
[326670371,1715211079760,-770.12,0.00028493,5]
[326670372,1715211079770,-500.0,0.00028493,5]
[326670373,1715211079779,-500.0,0.00028493,5]
[326670374,1715211079789,-500.0,0.00028493,5]
[326670375,1715211079798,-500.0,0.00028493,5]
[326670376,1715211079807,-266.65,0.00028493,5]
[326670377,1715211079816,-662.61,0.00028493,5]
[326670378,1715211079827,-1276.97,0.00028493,5]
[326670379,1715211079836,-9085.77,0.00028493,5]
[326670380,1715211079854,-853.81,0.00028493,5]
[326670381,1715211079867,-507.41,0.00028493,5]
[326670382,1715211079877,-500.0,0.00028493,5]
[326670383,1715211079887,-342.69,0.00028493,5]
[326670384,1715211079897,-513.35,0.00028493,5]
[326670385,1715211079908,-2931.87,0.00028493,5]
[326670386,1715211079917,-246.99,0.00028493,5]
[326670387,1715211079927,-1545.27,0.00028493,5]
[326670388,1715211079938,-1530.24,0.00028493,5]
[326670389,1715211079948,-1472.47,0.00028493,5]
[326670390,1715211079957,-574.26,0.00028493,5]
[326670391,1715211079967,-500.0,0.00028493,5]
[326670392,1715211079977,-500.0,0.00028493,5]
[326670393,1715211079987,-500.0,0.00028493,5]
[326670394,1715211079997,-1041.1,0.00028493,5]
[326670395,1715211080007,-500.0,0.00028493,5]
[326670396,1715211080017,-150.0,0.00028494,2]
[326670397,1715211080027,-150.0,0.00028497,2]
[326670398,1715211080036,-150.0,0.00028499,2]
[326670399,1715211080046,-150.0,0.00028514,2]
[326670400,1715211080055,-150.0,0.00028516,2]
[326670401,1715211080066,-150.0,0.00028517,2]
[326670402,1715211080080,-150.0,0.0002852,2]
[326670403,1715211080090,-386.99363453,0.00028525,2]
[326670404,1715211080099,-151.08431311,0.00028531,2]
[326670405,1715211080109,-150.0,0.00028532,2]
[326670406,1715211080119,-150.0,0.00028549,2]
[326670407,1715211080129,-150.0,0.00028555,2]
[326670408,1715211080139,-500.0,0.0002856,2]
[326670409,1715211080150,-150.0,0.0002857,2]
[326670410,1715211080161,-150.0,0.00028571,2]
[326670411,1715211080170,-6475.18751257,0.00028579,2]
[326670412,1715211080180,-150.0,0.00028582,2]
[326670413,1715211080190,-150.0,0.00028588,2]
[326670414,1715211080200,-150.0,0.00028593,2]
[326670415,1715211080210,-150.0,0.00028595,2]
[326670416,1715211080221,-150.0,0.00028607,2]
[326670417,1715211080231,-150.0,0.00028616,2]
[326670418,1715211080241,-150.0,0.00028616,2]
[326670419,1715211080251,-150.0,0.00028621,2]
[326670420,1715211080261,-150.59238323,0.00028624,2]
[326670421,1715211080271,-150.0,0.00028634,2]
[326670422,1715211080280,-150.0,0.00028643,2]
[326670423,1715211080292,-150.0,0.00028649,2]
[326670424,1715211080302,-150.0,0.00028656,2]
[326670425,1715211080311,-150.0,0.00028672,2]
[326670426,1715211080321,-150.0,0.00028672,2]
[326670427,1715211080330,-150.0,0.00028677,2]
[326670428,1715211080343,-150.0,0.00028698,2]
[326670429,1715211080352,-208.77,0.000287,2]
[326670430,1715211080362,-150.0,0.00028704,2]
[326670431,1715211080372,-200.0,0.00028707,2]
[326670432,1715211080381,-1000.0,0.00028707,10]
[326670433,1715211080391,-500.0,0.00028707,2]
[326670434,1715211080402,-200.0,0.00028707,2]
[326670435,1715211080412,-150.0,0.0002871,2]
[326670436,1715211080421,-150.0,0.00028711,2]
[326670437,1715211080431,-150.0,0.00028725,2]
[326670438,1715211080441,-150.0,0.00028729,2]
[326670439,1715211080450,-237.29863266,0.0002873,2]
[326670440,1715211080460,-150.0,0.00028739,2]
[326670441,1715211080469,-150.0,0.00028745,2]
[326670442,1715211080479,-157.050907,0.00028748,20]
[326670443,1715211080489,-150.0,0.00028752,2]
[326670444,1715211080499,-150.0,0.00028756,2]
[326670445,1715211080508,-150.0,0.00028756,2]
[326670446,1715211080518,-150.0,0.00028757,2]
[326670447,1715211080528,-692.328594,0.00028767,14]
[326670448,1715211080538,-150.0,0.00028769,2]
[326670449,1715211080547,-150.0,0.00028776,2]
[326670450,1715211080556,-150.0,0.00028783,2]
[326670451,1715211080565,-150.0,0.00028799,2]
[326670452,1715211080575,-433.99,0.000288,2]
[326670453,1715211080584,-527.77,0.000288,2]
[326670454,1715211080594,-2100.0,0.000288,10]
[326670455,1715211080603,-150.0,0.00028815,2]
[326670456,1715211080612,-150.0,0.00028817,2]
[326670457,1715211080622,-150.0,0.00028818,2]
[326670458,1715211080631,-150.0,0.00028835,2]
[326670459,1715211080644,-150.0,0.00028838,2]
[326670460,1715211080657,-150.0,0.00028839,2]
[326670461,1715211080667,-150.0,0.00028844,2]
[326670462,1715211080677,-150.0,0.0002885,2]
[326670463,1715211080687,-500.0,0.00028854,2]
[326670464,1715211080696,-150.0,0.00028859,2]
[326670465,1715211080706,-150.0,0.00028864,2]
[326670466,1715211080716,-150.0,0.00028866,2]
[326670467,1715211080725,-150.0,0.0002887,2]
[326670468,1715211080735,-150.0,0.00028877,2]
[326670469,1715211080746,-150.0,0.0002888,2]
[326670470,1715211080755,-150.59238323,0.00028882,2]
[326670471,1715211080764,-150.0,0.00028893,2]
[326670472,1715211080774,-150.0,0.00028893,2]
[326670473,1715211080784,-150.0,0.00028897,2]
[326670474,1715211080793,-400.0,0.000289,10]
[326670475,1715211080802,-150.0,0.000289,6]
[326670476,1715211080812,-150.0,0.00028904,2]
[326670477,1715211080821,-150.0,0.00028914,2]
[326670478,1715211080830,-150.0,0.00028921,2]
[326670479,1715211080839,-200.0,0.00028928,2]
[326670480,1715211080849,-1000.0,0.00028928,10]
[326670481,1715211080858,-150.0,0.00028942,2]
[326670482,1715211080867,-386.99363453,0.00028942,2]
[326670483,1715211080877,-150.0,0.00028943,2]
[326670484,1715211080887,-150.0,0.00028947,2]
[326670485,1715211080897,-154.55367259,0.00028966,2]
[326670486,1715211080907,-150.0,0.00028973,2]
[326670487,1715211080916,-150.0,0.00028983,2]
[326670488,1715211080926,-150.0,0.00028987,2]
[326670489,1715211080935,-150.0,0.00028989,2]
[326670490,1715211080945,-150.86644343,0.00028999,2]
[326670491,1715211080958,-500.0,0.00028999,2]
[326670492,1715211080967,-500.0,0.00028999,2]
[326670493,1715211080976,-365.60186464,0.00028999,2]
[326670494,1715211080986,-500.0,0.00028999,2]
[326670495,1715211080995,-500.0,0.00028999,2]
[326670496,1715211081004,-168.99044722,0.00028999,2]
[326670497,1715211081014,-500.0,0.00028999,2]
[326670498,1715211081024,-500.0,0.00028999,2]
[326670499,1715211081034,-150.0,0.00028999,10]
[326670500,1715211081043,-150.0,0.00028999,10]
[326670501,1715211081052,-150.0,0.00028999,10]
[326670502,1715211081062,-150.0,0.00028999,10]
[326670503,1715211081072,-500.5009123,0.00029,2]
[326670504,1715211081085,-10436.50820166,0.00029,4]
[326670505,1715211081095,-234.139883,0.00029,120]
[326670506,1715211081104,-49863.72127705,0.00029,2]
[326670507,1715211081115,-500.0,0.00029001,2]
[326670508,1715211081124,-150.0,0.00029013,2]
[326670509,1715211081137,-150.0,0.00029014,2]
[326670510,1715211081148,-150.0,0.00029015,2]
[326670511,1715211081161,-150.0,0.00029026,2]
[326670512,1715211081172,-150.0,0.00029034,2]
[326670513,1715211081182,-500.0,0.0002904,2]
[326670514,1715211081192,-150.0,0.0002904,2]
[326670515,1715211081202,-252.86,0.00029041,5]
[326670516,1715211081212,-500.0,0.00029041,5]
[326670517,1715211081221,-267.42,0.00029041,5]
[326670518,1715211081230,-500.0,0.00029041,5]
[326670519,1715211081240,-500.0,0.00029041,5]
[326670520,1715211081250,-332.07,0.00029041,5]
[326670521,1715211081260,-500.0,0.00029041,5]
[326670522,1715211081269,-500.0,0.00029041,5]
[326670523,1715211081279,-500.0,0.00029041,5]
[326670524,1715211081289,-500.0,0.00029041,5]
[326670525,1715211081298,-1423.64,0.00029041,5]
[326670526,1715211081308,-500.0,0.00029041,5]
[326670527,1715211081318,-500.0,0.00029041,5]
[326670528,1715211081327,-500.0,0.00029041,5]
[326670529,1715211081337,-902.92,0.00029041,5]
[326670530,1715211081346,-500.0,0.00029041,5]
[326670531,1715211081355,-283.03,0.00029041,5]
[326670532,1715211081365,-242.16,0.00029041,5]
[326670533,1715211081374,-500.0,0.00029041,5]
[326670534,1715211081383,-500.0,0.00029041,5]
[326670535,1715211081395,-500.0,0.00029041,5]
[326670536,1715211081404,-500.0,0.00029041,5]
[326670537,1715211081415,-512.11340147,0.00029041,5]
[326670538,1715211081424,-325.46,0.00029041,5]
[326670539,1715211081433,-500.0,0.00029041,5]
[326670540,1715211081442,-500.0,0.00029041,5]
[326670541,1715211081453,-281.22,0.00029041,5]
[326670542,1715211081462,-1452.27,0.00029041,5]
[326670543,1715211081471,-510.49664992,0.00029041,5]
[326670544,1715211081481,-500.0,0.00029041,5]
[326670545,1715211081491,-500.0,0.00029041,5]
[326670546,1715211081501,-500.0,0.00029041,5]
[326670547,1715211081511,-351.11,0.00029041,5]
[326670548,1715211081520,-293.82,0.00029041,5]
[326670549,1715211081530,-1175.22,0.00029041,5]
[326670550,1715211081540,-500.0,0.00029041,5]
[326670551,1715211081549,-151.97,0.00029041,5]
[326670552,1715211081558,-227.05,0.00029041,5]
[326670553,1715211081568,-353.22,0.00029041,5]
[326670554,1715211081577,-513.49,0.00029041,5]
[326670555,1715211081587,-500.0,0.00029041,5]
[326670556,1715211081596,-500.0,0.00029041,5]
[326670557,1715211081605,-281.64,0.00029041,5]
[326670558,1715211081615,-289.14,0.00029041,5]
[326670559,1715211081624,-306.2,0.00029041,5]
[326670560,1715211081634,-500.0,0.00029041,5]
[326670561,1715211081644,-500.0,0.00029041,5]
[326670562,1715211081654,-500.0,0.00029041,5]
[326670563,1715211081664,-500.0,0.00029041,5]
[326670564,1715211081674,-456.65,0.00029041,5]
[326670565,1715211081682,-500.0,0.00029041,5]
[326670566,1715211081692,-221.45,0.00029041,5]
[326670567,1715211081702,-1619.48,0.00029041,5]
[326670568,1715211081711,-684.52,0.00029041,5]
[326670569,1715211081721,-500.0,0.00029041,2]
[326670570,1715211081730,-500.0,0.00029041,5]
[326670571,1715211081739,-584.34,0.00029041,5]
[326670572,1715211081749,-500.0,0.00029041,5]
[326670573,1715211081759,-500.0,0.00029041,5]
[326670574,1715211081767,-500.0,0.00029041,5]
[326670575,1715211081776,-654.86,0.00029041,5]
[326670576,1715211081787,-500.0,0.00029041,5]
[326670577,1715211081798,-500.0,0.00029041,5]
[326670578,1715211081808,-500.0,0.00029041,5]
[326670579,1715211081817,-500.0,0.00029041,5]
[326670580,1715211081827,-500.0,0.00029041,2]
[326670581,1715211081836,-500.0,0.00029041,5]
[326670582,1715211081846,-500.0,0.00029041,5]
[326670583,1715211081856,-500.0,0.00029041,5]
[326670584,1715211081866,-500.0,0.00029041,5]
[326670585,1715211081880,-500.0,0.00029041,5]
[326670586,1715211081889,-150.17,0.00029041,5]
[326670587,1715211081899,-500.0,0.00029041,5]
[326670588,1715211081909,-500.0,0.00029041,5]
[326670589,1715211081918,-430.81,0.00029041,5]
[326670590,1715211081928,-500.0,0.00029041,5]
[326670591,1715211081937,-500.0,0.00029041,5]
[326670592,1715211081946,-500.0,0.00029041,5]
[326670593,1715211081956,-500.0,0.00029041,5]
[326670594,1715211081966,-500.0,0.00029041,5]
[326670595,1715211081976,-500.0,0.00029041,2]
[326670596,1715211081986,-500.0,0.00029041,5]
[326670597,1715211081996,-1074.15,0.00029041,5]
[326670598,1715211082005,-212.75,0.00029041,5]
[326670599,1715211082014,-500.0,0.00029041,5]
[326670600,1715211082211,-500.0,0.00029041,5]
[326670601,1715211082222,-500.0,0.00029041,5]
[326670602,1715211082231,-500.0,0.00029041,5]
[326670603,1715211082241,-500.0,0.00029041,5]
[326670604,1715211082250,-2498.14,0.00029041,5]
[326670605,1715211082259,-500.0,0.00029041,5]
[326670606,1715211082269,-500.0,0.00029041,5]
[326670607,1715211082278,-500.0,0.00029041,5]
[326670608,1715211082289,-277.16,0.00029041,5]
[326670609,1715211082298,-1087.96,0.00029041,5]
[326670610,1715211082309,-500.0,0.00029041,5]
[326670611,1715211082318,-500.0,0.00029041,5]
[326670612,1715211082327,-574.08,0.00029041,5]
[326670613,1715211082336,-500.0,0.00029041,5]
[326670614,1715211082345,-500.0,0.00029041,5]
[326670615,1715211082355,-285.87,0.00029041,5]
[326670616,1715211082364,-500.0,0.00029041,5]
[326670617,1715211082374,-500.0,0.00029041,5]
[326670618,1715211082384,-500.0,0.00029041,5]
[326670619,1715211082394,-500.0,0.00029041,5]
[326670620,1715211082403,-500.0,0.00029041,5]
[326670621,1715211082413,-392.31811194,0.00029041,5]
[326670622,1715211082422,-1553.68,0.00029041,5]
[326670623,1715211082432,-500.0,0.00029041,5]
[326670624,1715211082442,-500.0,0.00029041,5]
[326670625,1715211082451,-500.0,0.00029041,5]
[326670626,1715211082460,-783.0,0.00029041,5]
[326670627,1715211082469,-1248.88,0.00029041,5]
[326670628,1715211082478,-500.0,0.00029041,5]
[326670629,1715211082487,-2737.72,0.00029041,5]
[326670630,1715211082497,-500.0,0.00029041,5]
[326670631,1715211082506,-500.0,0.00029041,5]
[326670632,1715211082515,-534.75,0.00029041,5]
[326670633,1715211082525,-500.0,0.00029041,5]
[326670634,1715211082535,-500.0,0.00029041,5]
[326670635,1715211082544,-500.0,0.00029041,5]
[326670636,1715211082553,-1364.86,0.00029041,5]
[326670637,1715211082562,-500.0,0.00029041,5]
[326670638,1715211082571,-1357.36,0.00029041,5]
[326670639,1715211082581,-500.0,0.00029041,5]
[326670640,1715211082590,-500.0,0.00029041,5]
[326670641,1715211082599,-624.37,0.00029041,5]
[326670642,1715211082608,-458.61,0.00029041,5]
[326670643,1715211082616,-500.0,0.00029041,5]
[326670644,1715211082626,-500.0,0.00029041,5]
[326670645,1715211082635,-500.0,0.00029041,5]
[326670646,1715211082643,-500.0,0.00029041,5]
[326670647,1715211082652,-500.0,0.00029041,5]
[326670648,1715211082662,-500.0,0.00029041,5]
[326670649,1715211082672,-517.72,0.00029041,5]
[326670650,1715211082681,-416.3,0.00029041,5]
[326670651,1715211082690,-591.35,0.00029041,5]
[326670652,1715211082699,-500.0,0.00029041,5]
[326670653,1715211082709,-500.0,0.00029041,5]
[326670654,1715211082719,-509.0,0.00029041,5]
[326670655,1715211082728,-500.0,0.00029041,5]
[326670656,1715211082738,-304.4,0.00029041,5]
[326670657,1715211082747,-500.0,0.00029041,5]
[326670658,1715211082756,-500.0,0.00029041,5]
[326670659,1715211082765,-500.0,0.00029041,5]
[326670660,1715211082775,-376.33,0.00029041,5]
[326670661,1715211082784,-196.64,0.00029041,5]
[326670662,1715211082794,-500.0,0.00029041,5]
[326670663,1715211082803,-500.0,0.00029041,5]
[326670664,1715211082813,-833.92,0.00029041,5]
[326670665,1715211082822,-500.0,0.00029041,5]
[326670666,1715211082831,-500.0,0.00029041,5]
[326670667,1715211082839,-1475.61,0.00029041,5]
[326670668,1715211082848,-500.0,0.00029041,5]
[326670669,1715211082858,-500.0,0.00029041,5]
[326670670,1715211082867,-1801.26,0.00029041,5]
[326670671,1715211082876,-511.43,0.00029041,5]
[326670672,1715211082885,-500.0,0.00029041,5]
[326670673,1715211082894,-731.06,0.00029041,5]
[326670674,1715211082903,-500.0,0.00029041,2]
[326670675,1715211082913,-500.0,0.00029041,5]
[326670676,1715211082922,-500.0,0.00029041,5]
[326670677,1715211082931,-500.0,0.00029041,5]
[326670678,1715211082940,-550.24,0.00029041,5]
[326670679,1715211082950,-504.97,0.00029041,5]
[326670680,1715211082959,-1189.61,0.00029041,5]
[326670681,1715211082968,-1307.46,0.00029041,5]
[326670682,1715211082977,-515.55,0.00029041,5]
[326670683,1715211082987,-2119.18,0.00029041,5]
[326670684,1715211082996,-500.0,0.00029041,5]
[326670685,1715211083006,-500.0,0.00029041,5]
[326670686,1715211083017,-500.0,0.00029041,5]
[326670687,1715211083026,-1267.41,0.00029041,5]
[326670688,1715211083035,-579.5,0.00029041,5]
[326670689,1715211083044,-500.0,0.00029041,5]
[326670690,1715211083053,-500.0,0.00029041,5]
[326670691,1715211083063,-500.0,0.00029041,5]
[326670692,1715211083076,-516.3,0.00029041,5]
[326670693,1715211083086,-500.0,0.00029041,5]
[326670694,1715211083095,-254.43,0.00029041,5]
[326670695,1715211083105,-500.0,0.00029041,5]
[326670696,1715211083115,-622.73,0.00029041,5]
[326670697,1715211083125,-500.0,0.00029041,5]
[326670698,1715211083134,-500.0,0.00029041,5]
[326670699,1715211083143,-500.0,0.00029041,5]
[326670700,1715211083153,-2032.81,0.00029041,5]
[326670701,1715211083167,-500.0,0.00029041,5]
[326670702,1715211083176,-500.0,0.00029041,5]
[326670703,1715211083187,-500.0,0.00029041,5]
[326670704,1715211083196,-750.62,0.00029041,5]